bitfinex-derivatives/quotes_SOLF0:USTF0_20250416
["timestamp","ask_amount","ask_price","bid_price","bid_amount"]
[1744838474166,0.04988139,132.71,132.69,7.58450111]
[1744838477767,7.58518139,132.71,132.69,0.04850111]
[1744838478363,0.04988139,132.71,132.69,7.58460111]
[1744838484774,7.5356,132.7,132.69,0.04850111]
[1744838485368,7.5368,132.68,132.66,7.5376]
[1744838485569,12.8119646,132.69,132.66,7.5376]
[1744838486471,12.86008213,132.69,132.66,7.59552557]
[1744838486673,7.5368,132.68,132.66,0.05792557]
[1744838486874,12.86008213,132.69,132.66,0.05792557]
[1744838487572,7.537,132.68,132.66,0.05792557]
[1744838488071,7.5373,132.67,132.66,0.05792557]
[1744838488272,12.8119646,132.67,132.58,397.44]
[1744838488575,12.8119646,132.64,132.59,19.8662646]
[1744838489074,20.3518646,132.63,132.59,7.0543]
[1744838489274,0.04775573,132.62,132.6,0.05668206]
[1744838490174,0.04775573,132.62,132.6,7.59778206]
[1744838490975,0.04775573,132.62,132.61,7.5407]
[1744838505983,0.04775573,132.62,132.6,7.59768206]
[1744838506392,12.8119646,132.61,132.6,0.05668206]
[1744838506693,20.3526646,132.61,132.6,0.05668206]
[1744838511996,7.5428,132.58,132.55,7.5438]
[1744838512191,20.3547646,132.58,132.55,7.5438]
[1744838512386,12.8119646,132.58,132.55,7.5438]
[1744838513096,12.86490421,132.58,132.55,7.5920203]
[1744838514196,7.543,132.57,132.55,7.5920203]
[1744838515397,20.40760421,132.58,132.55,7.5920203]
[1744838515992,12.8119646,132.56,132.55,0.0482203]
[1744838516598,20.3555646,132.56,132.55,0.0482203]
[1744838519298,7.5458,132.53,132.5,17.4903646]
[1744838519893,51.6770646,132.54,132.5,17.4903646]
[1744838520097,38.8651,132.54,132.5,17.4903646]
[1744838520295,0.05249678,132.53,132.51,0.0544193]
[1744838520496,0.05249678,132.53,132.51,7.6005193]
[1744838520697,12.8119646,132.55,132.51,7.6005193]
[1744838520698,45.226,132.67,132.52,12.8119646]
[1744838520896,12.8119646,132.59,132.52,12.8119646]
[1744838521097,31.32,132.58,132.52,12.8119646]
[1744838521397,31.32,132.58,132.54,12.8119646]
[1744838521599,31.32,132.58,132.56,7.5433]
[1744838521800,31.37386772,132.58,132.56,0.04747286]
[1744838523097,0.05386772,132.58,132.56,0.04747286]
[1744838523299,0.05386772,132.58,132.57,7.543]
[1744838526304,20.3529646,132.61,132.58,7.5422]
[1744838526504,20.3529646,132.61,132.56,2.38277286]
[1744838527005,20.3529646,132.61,132.59,7.5418]
[1744838527202,12.8119646,132.61,132.59,7.5418]
[1744838527501,12.86688938,132.61,132.59,7.59274116]
[1744838527702,20.40768938,132.61,132.59,7.59274116]
[1744838527898,20.40768938,132.61,132.59,0.05094116]
[1744838528402,0.05492478,132.61,132.59,7.59234116]
[1744838531200,7.59562478,132.61,132.59,7.59234116]
[1744838533908,7.5413,132.6,132.59,0.05094116]
[1744838534207,20.3532646,132.6,132.59,0.05094116]
[1744838535002,0.05492478,132.61,132.59,0.05094116]
[1744838535507,0.05492478,132.61,132.59,7.59244116]
[1744838535709,0.05492478,132.61,132.59,0.05094116]
[1744838537009,0.05492478,132.61,132.59,7.59224116]
[1744838538708,0.05492478,132.61,132.6,7.5413]
[1744838538910,12.8119646,132.66,132.59,12.86290576]
[1744838539102,31.32,132.71,132.62,12.8119646]
[1744838539307,12.8119646,132.68,132.62,12.8119646]
[1744838539605,7.5382,132.66,132.64,7.539]
[1744838540006,0.05073139,132.66,132.65,7.5384]
[1744838541213,7.5365,132.69,132.64,12.86853786]
[1744838541408,7.5365,132.69,132.66,12.8119646]
[1744838541815,7.5365,132.69,132.66,20.3495646]
[1744838542213,7.5931832,132.69,132.66,20.3495646]
[1744838542514,0.0566832,132.69,132.67,7.537]
[1744838542715,0.0566832,132.69,132.67,7.58643608]
[1744838543313,0.0566832,132.69,132.68,7.5367]
[1744838543916,0.0566832,132.69,132.68,20.3486646]
[1744838544816,7.5342,132.73,132.7,7.5352]
[1744838545316,44.1319646,132.74,132.7,7.5352]
[1744838545715,44.1319646,132.74,132.69,7.5359]
[1744838545917,0.05272952,132.73,132.7,0.05385125]
[1744838546315,7.58712952,132.73,132.7,0.05385125]
[1744838547117,7.58712952,132.73,132.7,7.58935125]
[1744838548522,20.39909412,132.73,132.7,7.58935125]
[1744838550114,0.05272952,132.73,132.71,7.535]
[1744838550320,0.05272952,132.73,132.7,0.05385125]
[1744838550722,7.58702952,132.73,132.7,7.58915125]
[1744838551019,0.05272952,132.73,132.72,12.8119646]
[1744838551220,12.8119646,132.77,132.72,12.8119646]
[1744838552019,7.5311,132.78,132.75,7.5324]
[1744838552220,7.58691236,132.78,132.75,7.58684149]
[1744838552521,0.05581236,132.78,132.75,0.05444149]
[1744838552915,0.05581236,132.78,132.76,7.5318]
[1744838553919,0.05581236,132.78,132.77,7.5316]
[1744838556124,44.0919646,132.83,132.78,12.8119646]
[1744838556323,4.5469,132.85,132.78,12.8119646]
[1744838556324,12.8119646,132.85,132.78,12.8119646]
[1744838556520,7.528,132.84,132.8,7.5296]
[1744838557121,0.0542584,132.83,132.81,7.57742665]
[1744838557426,0.0542584,132.83,132.81,0.04812665]
[1744838557815,0.0542584,132.83,132.82,7.5288]
[1744838558525,0.0542584,132.83,132.82,20.3407646]
[1744838559921,31.28,132.9,132.85,7.527]
[1744838560222,31.28,132.9,132.85,20.3389646]
[1744838560622,7.5252,132.89,132.85,20.3389646]
[1744838560820,31.28,132.9,132.85,20.3389646]
[1744838561027,0.05525785,132.88,132.86,0.04854527]
[1744838562322,7.58065785,132.88,132.86,0.04854527]
[1744838563428,0.05525785,132.88,132.86,0.04854527]
[1744838563728,0.05525785,132.88,132.86,7.57474527]
[1744838566025,31.26,132.93,132.87,44.0719646]
[1744838566429,7.5235,132.92,132.88,7.5251]
[1744838567029,0.0394126,132.91,132.89,0.05490301]
[1744838567829,0.0394126,132.91,132.89,7.57950301]
[1744838568028,0.0394126,132.91,132.89,20.39146761]
[1744838570431,0.0394126,132.91,132.89,12.86686761]
[1744838570728,0.0394126,132.91,132.89,0.05490301]
[1744838571030,12.8119646,132.9,132.89,0.05490301]
[1744838571231,20.3362646,132.9,132.89,0.05490301]
[1744838572932,7.5261,132.87,132.82,44.0719646]
[1744838573337,12.8119646,132.88,132.84,20.3393646]
[1744838573530,20.3376646,132.88,132.84,12.8119646]
[1744838573732,20.3376646,132.88,132.85,7.5269]
[1744838573933,20.39222731,132.88,132.85,7.58108951]
[1744838575138,0.05456271,132.88,132.86,7.5263]
[1744838575439,0.05456271,132.88,132.86,20.3382646]
[1744838576133,0.05456271,132.88,132.87,7.526]
[1744838577539,0.05456271,132.88,132.86,44.0319646]
[1744838577738,0.05456271,132.88,132.85,0.05418951]
[1744838578140,7.58026271,132.88,132.85,0.05418951]
[1744838578638,0.05456271,132.88,132.85,0.05418951]
[1744838578940,0.05456271,132.88,132.85,7.58088951]
[1744838579241,0.05456271,132.88,132.85,0.05418951]
[1744838579736,0.05456271,132.88,132.85,7.58098951]
[1744838580139,0.05456271,132.88,132.86,12.8119646]
[1744838580440,12.8119646,132.99,132.87,31.22]
[1744838580636,12.8119646,132.99,132.93,12.8119646]
[1744838581039,12.8119646,132.99,132.94,7.5216]
[1744838581241,0.0397529,132.98,132.95,0.04817142]
[1744838581847,7.5595529,132.98,132.95,0.04817142]
[1744838582343,0.0397529,132.98,132.95,0.04817142]
[1744838583742,0.0397529,132.98,132.95,7.56957142]
[1744838584645,0.0397529,132.98,132.96,7.5209]
[1744838585248,0.0397529,132.98,132.95,7.56937142]
[1744838585842,0.0397529,132.98,132.96,7.5207]
[1744838589049,0.0397529,132.98,132.97,7.5203]
[1744838592454,7.5165,133.04,133.0,7.5182]
[1744838592762,2.4263,133.06,132.97,51.14740377]
[1744838592955,7.5169,133.03,132.97,51.14740377]
[1744838593155,31.2,133.05,132.97,51.14740377]
[1744838593553,31.2,133.05,133.0,0.04757294]
[1744838593957,38.7161,133.05,133.0,0.04757294]
[1744838594460,51.14740377,133.08,133.0,0.04757294]
[1744838594757,51.14740377,133.08,133.03,0.05274273]
[1744838595157,58.66190377,133.08,133.04,7.5163]
[1744838595359,38.7145,133.08,133.04,7.5163]
[1744838595759,31.2,133.11,133.03,0.05274273]
[1744838595956,51.14740377,133.11,133.06,0.05541939]
[1744838596349,7.5138,133.09,133.06,0.05541939]
[1744838596956,51.14740377,133.11,133.06,0.05541939]
[1744838597159,19.94740377,133.09,133.06,0.05541939]
[1744838597459,7.5146,133.07,133.06,0.05541939]
[1744838602061,51.14740377,133.07,132.97,31.2]
[1744838602361,19.94740377,133.05,132.99,7.5188]
[1744838602557,7.518,133.01,132.98,2.3506]
[1744838602766,7.518,133.01,132.97,38.72]
[1744838602963,7.518,133.01,132.97,31.2]
[1744838603265,0.0492472,133.0,132.98,0.0482249]
[1744838603655,7.5192,132.99,132.98,0.0482249]
[1744838603859,12.80947102,133.0,132.98,0.0482249]
[1744838604463,20.32847102,133.0,132.98,0.0482249]
[1744838605063,7.5192,132.99,132.98,0.0482249]
[1744838607668,0.0492472,133.0,132.98,0.0482249]
[1744838608157,7.5681472,133.0,132.98,0.0482249]
[1744838608964,0.0492472,133.0,132.98,7.5676249]
[1744838609266,0.0492472,133.0,132.98,0.0482249]
[1744838610363,0.0492472,133.0,132.99,7.5192]
[1744838611163,7.5163,133.05,133.02,7.5172]
[1744838611465,31.28,133.07,132.99,51.22352658]
[1744838611867,7.5158,133.05,132.99,51.22352658]
[1744838612167,31.28,133.07,132.99,51.22352658]
[1744838612368,31.28,133.07,133.01,0.04898425]
[1744838613270,38.7949,133.07,133.04,7.5163]
[1744838613466,38.7949,133.07,133.04,7.56503322]
[1744838613870,7.5154,133.06,133.04,0.04873322]
[1744838615574,38.7949,133.07,133.04,7.56503322]
[1744838616169,31.28,133.07,133.04,0.04873322]
[1744838616477,31.28,133.1,133.04,0.04873322]
[1744838616876,7.5144,133.08,133.05,7.5155]
[1744838617578,545.8979,133.13,133.04,0.04873322]
[1744838617579,574.9118,133.13,133.04,0.04873322]
[1744838617768,572.68,133.13,133.07,0.04926984]
[1744838618075,51.22352658,133.17,133.09,19.94352658]
[1744838618375,51.22352658,133.17,133.12,0.05568783]
[1744838618672,7.5112,133.14,133.12,0.05568783]
[1744838619176,7.5104,133.15,133.12,0.05568783]
[1744838619377,51.22352658,133.17,133.12,0.05568783]
[1744838619871,7.5105,133.15,133.12,7.56718783]
[1744838620075,7.5105,133.15,133.12,0.05568783]
[1744838621372,7.5112,133.14,133.12,0.05568783]
[1744838621578,51.22352658,133.17,133.12,0.05568783]
[1744838621878,7.5113,133.13,133.12,0.05568783]
[1744838623978,51.22352658,133.17,133.05,55.83512658]
[1744838623979,7.5124,133.12,133.05,55.83512658]
[1744838624376,7.5124,133.12,133.08,7.514]
[1744838624876,0.04914206,133.11,133.1,7.5129]
[1744838625177,0.0541017,133.12,133.09,0.05762081]
[1744838625979,0.0541017,133.12,133.09,7.57092081]
[1744838626276,0.0541017,133.12,133.09,0.05762081]
[1744838626477,0.0541017,133.12,133.1,7.5129]
[1744838626672,0.0541017,133.12,133.09,0.05762081]
[1744838626875,2.2088,133.2,133.1,31.26]
[1744838627180,19.94352658,133.21,133.11,53.46712658]
[1744838627380,19.94352658,133.21,133.14,7.5107]
[1744838627780,7.5087,133.18,133.14,7.5107]
[1744838628083,19.94352658,133.21,133.15,0.04939803]
[1744838628276,7.5087,133.18,133.15,0.04939803]
[1744838629181,7.509,133.17,133.15,0.04939803]
[1744838629882,7.5096,133.16,133.15,0.04939803]
[1744838631583,7.5113,133.13,133.1,7.5127]
[1744838631785,19.94352658,133.17,133.1,7.5127]
[1744838632082,7.5111,133.14,133.1,7.5127]
[1744838632281,7.5111,133.14,133.11,7.5122]
[1744838632482,7.5111,133.14,133.11,0.04871099]
[1744838632483,7.56513761,133.14,133.11,0.04871099]
[1744838633078,0.05403761,133.14,133.11,0.04871099]
[1744838633482,7.5117,133.13,133.11,0.04871099]
[1744838634083,7.5118,133.12,133.11,0.04871099]
[1744838634882,19.94352658,133.13,133.04,31.26]
[1744838635686,7.5141,133.08,133.05,12.0872]
[1744838635885,7.57003268,133.08,133.05,12.13767542]
[1744838636786,0.05593268,133.08,133.05,4.62227542]
[1744838637189,7.57033268,133.08,133.05,2.36187542]
[1744838637884,7.57033268,133.08,133.05,9.87757542]
[1744838639487,7.5147,133.07,133.05,2.36187542]
[1744838639694,7.5147,133.07,133.05,0.05047542]
[1744838639990,0.05593268,133.08,133.05,0.05047542]
[1744838640186,7.515,133.07,133.05,0.05047542]
[1744838640588,0.05593268,133.08,133.05,0.05047542]
[1744838640787,7.5166,133.04,132.99,51.10352658]
[1744838641082,51.10352658,133.07,132.97,19.94352658]
[1744838641286,51.10352658,133.07,132.97,51.10352658]
[1744838641484,7.5178,133.02,132.97,51.10352658]
[1744838641889,0.05092119,133.01,132.98,0.04917929]
[1744838643496,7.5201,132.98,132.93,51.10352658]
[1744838643796,51.10352658,132.99,132.91,12.2808]
[1744838644393,0.05006226,132.96,132.94,0.05102403]
[1744838644795,7.5214,132.95,132.94,0.05102403]
[1744838644990,38.6814,132.95,132.94,0.05102403]
[1744838645194,31.16,132.95,132.89,51.10352658]
[1744838645386,7.5225,132.94,132.87,19.94352658]
[1744838645593,19.94352658,132.94,132.87,7.5256]
[1744838646294,0.05172171,132.92,132.89,0.05039719]
[1744838647601,0.05172171,132.92,132.89,7.57469719]
[1744838648199,0.05172171,132.92,132.91,7.5237]
[1744838649000,572.32,132.98,132.93,7.5221]
[1744838649495,592.26352658,132.98,132.88,19.94352658]
[1744838650103,0.04766273,132.94,132.92,0.05439926]
[1744838653308,7.56986273,132.94,132.92,0.05439926]
[1744838653703,0.04766273,132.94,132.92,0.05439926]
[1744838654507,7.5226,132.93,132.92,0.05439926]
[1744838671916,7.5241,132.91,132.87,7.5257]
[1744838672512,31.18,132.94,132.87,7.5257]
[1744838673113,0.05354046,132.92,132.89,0.04946407]
[1744838673314,7.5237,132.91,132.89,0.04946407]
[1744838673717,0.05354046,132.92,132.89,0.04946407]
[1744838675311,7.5243,132.9,132.89,0.04946407]
[1744838687422,0.05354046,132.92,132.89,0.04946407]
[1744838688023,7.57694046,132.92,132.89,7.57416407]
[1744838688320,7.57694046,132.92,132.89,20.35182827]
[1744838690323,0.05354046,132.92,132.9,7.5242]
[1744838692020,0.05354046,132.92,132.91,20.3013642]
[1744838692225,31.18,132.97,132.91,12.7776642]
[1744838692427,31.18,132.97,132.93,12.7776642]
[1744838692627,7.5211,132.96,132.93,20.3000642]
[1744838693128,7.5215,132.95,132.93,20.3000642]
[1744838693324,7.57125626,132.95,132.93,20.35750831]
[1744838693523,0.04975626,132.95,132.93,20.35750831]
[1744838694929,0.04975626,132.95,132.94,7.522]
[1744838697031,0.04975626,132.95,132.93,20.35740831]
[1744838697521,0.04975626,132.95,132.94,7.522]
[1744838700536,31.14,133.02,132.93,12.83510831]
[1744838700732,12.7776642,133.02,132.94,31.14]
[1744838700936,12.7776642,132.96,132.92,7.5228]
[1744838701132,12.7776642,132.94,132.84,62.0]
[1744838701328,12.7776642,132.93,132.87,12.7776642]
[1744838701531,0.05294311,132.91,132.89,12.8322116]
[1744838701729,31.14,132.98,132.89,43.9722116]
[1744838701927,31.14,132.98,132.92,12.7776642]
[1744838702135,31.14,132.98,132.93,7.5223]
[1744838702333,12.7776642,133.0,132.94,12.7776642]
[1744838702636,7.5198,132.98,132.94,20.2992642]
[1744838702835,0.05054072,132.97,132.95,0.04930017]
[1744838703237,43.9176642,133.01,132.96,12.7776642]
[1744838703632,7.5191,133.0,132.96,20.2982642]
[1744838704442,7.57164308,132.99,132.96,20.2982642]
[1744838705030,12.83010728,132.99,132.95,0.04930017]
[1744838705234,0.05244308,132.99,132.95,0.04930017]
[1744838705639,7.5209,132.96,132.95,0.04930017]
[1744838708341,7.5209,132.96,132.95,1.7e-07]
[1744838708742,7.524,132.91,132.87,33.5184]
[1744838709139,7.524,132.91,132.87,41.0439]
[1744838709744,0.04981136,132.9,132.88,0.05676895]
[1744838709941,27.11157212,133.0,132.88,0.05676895]
[1744838709942,104.82260939,133.09,132.88,365.05676895]
[1744838710141,19.94887212,133.07,132.97,19.94887212]
[1744838710341,7.5161,133.05,132.99,7.5187]
[1744838710542,19.94887212,133.07,132.98,2.1938]
[1744838710738,19.94887212,133.05,132.98,2.1938]
[1744838710944,0.04861787,133.03,133.0,0.05419076]
[1744838713247,19.99748999,133.03,133.0,0.05419076]
[1744838713647,19.99748999,133.03,132.94,35.8045]
[1744838713845,22.29957212,133.03,132.94,35.8045]
[1744838714048,19.94887212,133.01,132.94,4.6645]
[1744838714245,7.5187,133.0,132.95,7.5211]
[1744838714443,19.94887212,133.01,132.95,7.5211]
[1744838714639,0.05246481,132.99,132.97,0.05138811]
[1744838715648,0.05246481,132.99,132.97,7.57158811]
[1744838715849,0.05246481,132.99,132.97,0.05138811]
[1744838716650,0.05246481,132.99,132.97,7.57138811]
[1744838717945,0.05246481,132.99,132.97,0.05138811]
[1744838718351,0.05246481,132.99,132.97,7.57128811]
[1744838721148,0.05246481,132.99,132.97,0.05138811]
[1744838722154,7.5197,132.98,132.97,0.05138811]
[1744838722647,0.05246481,132.99,132.9,2.4199]
[1744838722847,31.14,133.0,132.92,7.5229]
[1744838723047,19.94887212,132.99,132.9,2.4199]
[1744838723352,7.5213,132.96,132.91,7.5233]
[1744838723552,31.14,132.96,132.91,7.5233]
[1744838723754,0.0501227,132.95,132.92,0.04916536]
[1744838724451,7.5716227,132.95,132.92,0.04916536]
[1744838726354,19.99899482,132.95,132.92,0.04916536]
[1744838726857,7.5226,132.93,132.92,0.04916536]
[1744838731653,7.5221,132.94,132.92,0.04916536]
[1744838731855,0.0501227,132.95,132.92,0.04916536]
[1744838732957,7.522,132.94,132.92,0.04916536]
[1744838734556,0.0501227,132.95,132.92,0.04916536]
[1744838735859,7.5226,132.93,132.92,0.04916536]
[1744838736260,19.94887212,132.94,132.87,7.5258]
[1744838736455,7.5241,132.91,132.87,7.5258]
[1744838737262,0.04889322,132.9,132.88,7.58275978]
[1744838740262,0.04889322,132.9,132.89,7.5248]
[1744838740464,31.12,132.95,132.89,19.94887212]
[1744838741069,7.5223,132.94,132.89,19.94887212]
[1744838741468,0.04899124,132.93,132.9,0.05006023]
[1744838742470,0.04899124,132.93,132.91,7.5236]
[1744838742872,0.04899124,132.93,132.9,0.05006023]
[1744838743170,0.04899124,132.93,132.91,7.5237]
[1744838743573,0.04899124,132.93,132.92,7.5231]
[1744838747779,0.04899124,132.93,132.9,0.05006023]
[1744838748375,7.57179124,132.93,132.9,0.05006023]
[1744838749080,7.57169124,132.93,132.9,7.57406023]
[1744838749980,7.5232,132.92,132.9,7.57406023]
[1744838751983,7.5237,132.91,132.9,0.05006023]
[1744838753680,7.5233,132.92,132.9,0.05006023]
[1744838757785,7.5237,132.91,132.9,0.05006023]
[1744838763799,7.5233,132.92,132.9,0.05006023]
[1744838763994,0.04899124,132.93,132.9,0.05006023]
[1744838764593,0.04899124,132.93,132.9,7.57426023]
[1744838764796,0.04899124,132.93,132.9,0.05006023]
[1744838765198,0.04899124,132.93,132.91,7.5233]
[1744838765594,0.04899124,132.93,132.92,12.77316761]
[1744838766601,7.5189,133.0,132.96,7.5205]
[1744838766789,31.08,133.01,132.95,12.77316761]
[1744838767196,7.5189,133.0,132.97,7.5203]
[1744838767697,7.56704717,133.0,132.97,7.5713372]
[1744838770999,0.04814717,133.0,132.97,7.5713372]
[1744838772100,0.04814717,133.0,132.98,7.5197]
[1744838773900,0.04814717,133.0,132.97,7.5710372]
[1744838776800,0.04814717,133.0,132.97,0.0510372]
[1744838777003,0.04814717,133.0,132.97,2.4087372]
[1744838778202,0.04814717,133.0,132.99,7.5192]
[1744838779800,0.04814717,133.0,132.97,2.4087372]
[1744838780300,7.56704717,133.0,132.97,9.9289372]
[1744838781099,0.04814717,133.0,132.97,2.4087372]
[1744838782000,7.5194,132.99,132.97,2.4087372]
[1744838782299,32.38881191,133.08,132.98,51.02073125]
[1744838782505,31.08,133.08,132.98,53.42503125]
[1744838783002,2.1872,133.07,132.99,2.3453]
[1744838783403,0.05522084,133.04,133.02,0.05524937]
[1744838785505,0.05522084,133.04,133.02,19.99598062]
[1744838785707,0.05522084,133.04,133.02,27.51328062]
[1744838786108,0.05522084,133.04,133.02,0.05524937]
[1744838789312,0.05522084,133.04,133.03,7.5169]
[1744838789507,0.05522084,133.04,133.02,19.99598062]
[1744838789805,0.05522084,133.04,133.02,0.05524937]
[1744838790005,0.05522084,133.04,133.02,19.99598062]
[1744838791609,0.05522084,133.04,133.03,7.5169]
[1744838793006,0.05522084,133.04,133.02,27.51348062]
[1744838793213,0.05522084,133.04,133.02,19.99598062]
[1744838794215,0.05522084,133.04,133.03,7.5169]
[1744838796510,38.5735,133.1,133.06,7.5152]
[1744838797214,38.5735,133.1,133.06,20.25890889]
[1744838797416,31.06,133.1,133.06,12.74370889]
[1744838797716,31.06,133.1,133.07,0.05091569]
[1744838798215,38.573,133.1,133.07,0.05091569]
[1744838798710,31.06,133.1,133.07,7.56511569]
[1744838799315,38.5731,133.1,133.07,0.05091569]
[1744838800712,7.5131,133.1,133.07,0.05091569]
[1744838800919,19.90909556,133.17,133.08,19.90909556]
[1744838801117,19.90909556,133.17,133.11,0.05372354]
[1744838801118,52.16909556,133.17,133.11,0.05372354]
[1744838801319,7.5111,133.14,133.11,0.05372354]
[1744838802119,7.5103,133.15,133.11,0.05372354]
[1744838803219,7.5108,133.14,133.11,0.05372354]
[1744838804822,7.5113,133.13,133.11,0.05372354]
[1744838805018,19.90909556,133.15,133.11,0.05372354]
[1744838805222,52.16909556,133.17,133.11,0.05372354]
[1744838805723,32.26,133.17,133.11,0.05372354]
[1744838805920,52.16909556,133.17,133.11,0.05372354]
[1744838806520,7.5115,133.13,133.11,0.05372354]
[1744838806724,52.16909556,133.17,133.11,0.05372354]
[1744838806924,7.5116,133.13,133.11,0.05372354]
[1744838809924,7.5118,133.12,133.11,0.05372354]
[1744838811833,39.7715,133.13,133.11,0.05372354]
[1744838812229,32.26,133.13,133.11,0.05372354]
[1744838812630,39.7715,133.13,133.11,0.05372354]
[1744838813936,7.5118,133.12,133.11,0.05372354]
[1744838814236,32.26,133.13,133.11,0.05372354]
[1744838814738,39.7718,133.13,133.11,0.05372354]
[1744838815638,32.26,133.23,133.12,19.90909556]
[1744838815834,32.26,133.23,133.16,0.04791286]
[1744838816131,32.26,133.23,133.17,19.90909556]
[1744838816442,32.26,133.23,133.19,0.04779291]
[1744838816732,39.766,133.23,133.19,0.04779291]
[1744838817943,39.766,133.23,133.19,7.55529291]
[1744838818241,32.26,133.23,133.19,0.04779291]
[1744838818941,7.5065,133.22,133.19,0.04779291]
[1744838819638,7.5073,133.2,133.19,0.04779291]
[1744838831146,7.5088,133.18,133.14,20.23804464]
[1744838832252,0.05321656,133.17,133.15,0.05350441]
[1744838832952,7.5096,133.16,133.15,0.05350441]
[1744838834557,7.56241656,133.17,133.15,0.05350441]
[1744838835654,7.5096,133.16,133.15,0.05350441]
[1744838837049,572.9,133.26,133.15,20.30114905]
[1744838837255,12.72764464,133.23,133.17,12.72764464]
[1744838837455,7.5064,133.22,133.17,12.72764464]
[1744838837657,7.5064,133.22,133.18,7.5081]
[1744838837857,12.72764464,133.23,133.17,12.72764464]
[1744838838058,7.5063,133.22,133.19,0.05159003]
[1744838839359,20.23354464,133.23,133.19,0.05159003]
[1744838840059,20.23354464,133.23,133.19,7.55909003]
[1744838841458,12.72764464,133.23,133.19,0.05159003]
[1744838841859,31.88,133.22,133.19,0.05159003]
[1744838842159,7.507,133.21,133.19,0.05159003]
[1744838843161,7.5067,133.21,133.19,0.05159003]
[1744838844153,7.5073,133.2,133.19,0.05159003]
[1744838847358,7.5069,133.21,133.19,0.05159003]
[1744838847860,39.3864,133.22,133.19,0.05159003]
[1744838848660,39.3864,133.22,133.19,7.55919003]
[1744838848961,7.5058,133.23,133.19,0.05159003]
[1744838849354,7.5058,133.23,133.2,7.5073]
[1744838849556,7.5058,133.23,133.19,0.05159003]
[1744838850562,7.5058,133.23,133.2,7.5071]
[1744838850763,7.5063,133.22,133.2,12.72764464]
[1744838851254,12.72764464,133.24,133.2,20.23484464]
[1744838851865,7.506,133.23,133.2,12.72764464]
[1744838852163,12.72764464,133.24,133.2,12.72764464]
[1744838852462,7.506,133.23,133.2,12.72764464]
[1744838853358,7.506,133.23,133.19,20.28683467]
[1744838854162,20.23294464,133.24,133.2,7.5071]
[1744838854864,31.88,133.25,133.21,12.72764464]
[1744838855158,31.88,133.25,133.22,0.04801133]
[1744838855864,12.72764464,133.27,133.23,12.72764464]
[1744838856358,38.5233,133.28,133.23,12.72764464]
[1744838856563,38.5233,133.28,133.24,7.5048]
[1744838856764,38.5233,133.28,133.25,0.0481932]
[1744838857171,7.5035,133.27,133.25,0.0481932]
[1744838857564,31.02,133.28,133.25,0.0481932]
[1744838858671,38.5232,133.28,133.25,0.0481932]
[1744838860068,7.5034,133.27,133.25,0.0481932]
[1744838860969,7.5039,133.26,133.25,0.0481932]
[1744838863567,31.02,133.28,133.25,0.0481932]
[1744838864274,7.5037,133.27,133.25,0.0481932]
[1744838864771,38.523,133.28,133.25,0.0481932]
[1744838865071,31.02,133.28,133.25,0.0481932]
[1744838865974,547.3398,133.33,133.25,0.0481932]
[1744838865975,578.3598,133.33,133.25,0.0481932]
[1744838866270,43.74764464,133.33,133.28,12.77604306]
[1744838866472,43.74764464,133.33,133.28,0.04839842]
[1744838867063,7.5015,133.31,133.28,0.04839842]
[1744838867673,12.72764464,133.32,133.28,0.04839842]
[1744838868176,7.5013,133.31,133.28,0.04839842]
[1744838868572,12.72764464,133.32,133.28,0.04839842]
[1744838868773,7.502,133.3,133.28,0.04839842]
[1744838871175,12.72764464,133.32,133.28,0.04839842]
[1744838871778,7.5021,133.3,133.28,0.04839842]
[1744838875178,12.72764464,133.32,133.28,0.04839842]
[1744838875881,7.502,133.3,133.28,0.04839842]
[1744838878380,7.5022,133.29,133.28,0.04839842]
[1744838878581,12.72764464,133.32,133.28,0.04839842]
[1744838878771,12.72764464,133.3,133.28,0.04839842]
[1744838878972,31.0,133.29,133.18,7.0304]
[1744838879176,12.72764464,133.25,133.19,31.0]
[1744838879380,12.72764464,133.23,133.19,7.5075]
[1744838879581,7.5065,133.22,133.19,7.5075]
[1744838879776,12.72764464,133.23,133.18,19.75804464]
[1744838880183,12.72764464,133.21,133.19,0.05713193]
[1744838880584,43.72764464,133.21,133.19,0.05713193]
[1744838880780,7.5073,133.2,133.19,0.05713193]
[1744838882495,38.5071,133.21,133.19,0.05713193]
[1744838882694,31.0,133.21,133.19,0.05713193]
[1744838883493,7.5073,133.2,133.19,0.05713193]
[1744838883693,50.88399396,133.21,133.14,7.5106]
[1744838884493,50.88399396,133.21,133.13,27.39499396]
[1744838884696,50.88399396,133.21,133.11,26.98539396]